bitfinex-derivatives/quotes_BTCF0:USTF0_20240824
["timestamp","ask_amount","ask_price","bid_price","bid_amount"]
[1724528225487,0.11,64379.0,64378.0,0.18823827]
[1724528225988,0.11,64379.0,64378.0,0.2257381]
[1724528226185,0.11,64379.0,64378.0,0.18823396]
[1724528226377,0.11,64379.0,64378.0,0.24999842]
[1724528226781,0.12,64379.0,64378.0,0.25199842]
[1724528226992,0.129,64379.0,64378.0,0.25199842]
[1724528227289,0.129,64379.0,64378.0,0.19023396]
[1724528227886,0.129,64379.0,64378.0,0.23583396]
[1724528228691,0.129,64379.0,64378.0,0.29759774]
[1724528229194,0.129,64379.0,64378.0,0.21156]
[1724528229494,0.129,64379.0,64378.0,0.23583328]
[1724528231484,0.129,64379.0,64378.0,0.25783031]
[1724528231693,0.129,64379.0,64378.0,0.21156]
[1724528231988,0.129,64379.0,64378.0,0.25783031]
[1724528232183,0.129,64379.0,64378.0,0.14147031]
[1724528232384,0.129,64379.0,64378.0,0.0952]
[1724528232584,0.129,64379.0,64378.0,0.21156]
[1724528236294,0.20663,64379.0,64378.0,0.0496]
[1724528236591,0.20663,64379.0,64378.0,0.16596]
[1724528237293,0.20663,64379.0,64378.0,0.0496]
[1724528238395,0.20663,64379.0,64378.0,0.002]
[1724528239893,0.28426,64379.0,64378.0,0.002]
[1724528240194,0.28426,64379.0,64363.0,0.00017535]
[1724528240195,0.11,64368.0,64365.0,0.04627031]
[1724528240500,0.09663,64379.0,64365.0,0.04627031]
[1724528240501,0.11,64366.0,64365.0,0.04627031]
[1724528240701,0.11,64366.0,64365.0,0.16259031]
[1724528240999,0.11,64366.0,64365.0,0.04627031]
[1724528241193,0.11,64366.0,64365.0,0.16259031]
[1724528241396,0.11,64366.0,64365.0,0.16659031]
[1724528242395,0.11,64366.0,64365.0,0.17159031]
[1724528242992,0.111,64366.0,64365.0,0.17159031]
[1724528244295,0.111,64366.0,64365.0,0.12532]
[1724528248306,0.111,64366.0,64365.0,0.18708446]
[1724528249102,0.111,64366.0,64365.0,0.07076446]
[1724528249607,0.111,64366.0,64365.0,0.18708446]
[1724528250898,0.188646,64366.0,64365.0,0.18708446]
[1724528251104,0.111,64366.0,64365.0,0.18708446]
[1724528251409,0.111,64366.0,64365.0,0.12532]
[1724528251602,0.111,64366.0,64365.0,0.18708446]
[1724528251996,0.111,64366.0,64365.0,0.07076446]
[1724528252407,0.111,64366.0,64365.0,0.18708446]
[1724528253409,0.111,64366.0,64365.0,0.12532]
[1724528253711,0.111,64366.0,64365.0,0.18708446]
[1724528258301,0.111,64366.0,64365.0,0.12532]
[1724528258505,0.111,64366.0,64365.0,0.18709477]
[1724528258905,0.111,64366.0,64365.0,0.12532]
[1724528259817,0.111,64366.0,64365.0,0.14959772]
[1724528261809,0.111,64366.0,64365.0,0.12532]
[1724528262005,0.111,64366.0,64365.0,0.14959774]
[1724528264613,0.111,64366.0,64365.0,0.12532]
[1724528264813,0.111,64366.0,64365.0,0.14959771]
[1724528266409,0.111,64366.0,64365.0,0.20257979]
[1724528266617,0.111,64366.0,64365.0,0.22685748]
[1724528267326,0.111,64366.0,64365.0,0.34517723]
[1724528267727,0.111,64366.0,64365.0,0.26791744]
[1724528271624,0.111,64366.0,64365.0,0.24363975]
[1724528271819,0.111,64366.0,64365.0,0.26791744]
[1724528273425,0.111,64366.0,64365.0,0.32101477]
[1724528273722,0.188645,64366.0,64365.0,0.07091154]
[1724528273919,0.26621495,64366.0,64365.0,0.009]
[1724528274121,0.188645,64366.0,64365.0,0.009]
[1724528274316,0.188645,64366.0,64365.0,0.05541185]
[1724528274814,0.26629123,64366.0,64365.0,0.05541185]
[1724528275323,0.188645,64366.0,64365.0,0.009]
[1724528276225,0.26629123,64366.0,64365.0,0.009]
[1724528276529,0.188645,64366.0,64365.0,0.009]
[1724528276725,0.077648,64364.0,64363.0,0.00017535]
[1724528277033,0.438448,64364.0,64363.0,0.00017535]
[1724528277526,0.904568,64364.0,64363.0,0.00017535]
[1724528277923,0.46612,64363.0,64355.0,0.04641185]
[1724528278123,0.4708,64356.0,64353.0,0.04641185]
[1724528278422,0.077661,64353.0,64350.0,0.04641185]
[1724528278624,0.11,64351.0,64350.0,0.04641185]
[1724528278827,0.11,64351.0,64349.0,0.0479]
[1724528278828,0.11015274,64351.0,64349.0,0.0479]
[1724528279027,0.11015274,64351.0,64350.0,0.04636373]
[1724528279222,0.11015274,64351.0,64350.0,0.04636382]
[1724528279529,0.11015274,64351.0,64344.0,0.11651301]
[1724528279530,0.11015274,64351.0,64349.0,0.04636382]
[1724528279733,0.11,64350.0,64349.0,0.04636382]
[1724528280026,0.11,64350.0,64346.0,0.06191154]
[1724528280220,0.00015274,64351.0,64349.0,0.04634354]
[1724528280627,0.00015274,64351.0,64350.0,0.04634354]
[1724528281033,0.00015274,64351.0,64347.0,0.06191154]
[1724528281226,0.11,64348.0,64347.0,0.06191154]
[1724528281534,0.11,64348.0,64347.0,0.08619572]
[1724528281728,0.11,64348.0,64346.0,0.06291154]
[1724528281932,0.11,64348.0,64346.0,0.001]
[1724528282233,0.11,64348.0,64346.0,0.06291154]
[1724528282426,0.07114466,64348.0,64346.0,0.001]
[1724528282626,0.07214466,64348.0,64346.0,0.001]
[1724528283036,0.07214466,64348.0,64345.0,0.06191154]
[1724528283529,0.07214466,64348.0,64347.0,0.04630635]
[1724528283834,0.07314466,64348.0,64347.0,0.04630635]
[1724528284526,0.07214466,64348.0,64347.0,0.04630635]
[1724528284732,0.07314466,64348.0,64347.0,0.04930635]
[1724528285131,0.07214466,64348.0,64347.0,0.04930635]
[1724528285331,0.07314466,64348.0,64347.0,0.003]
[1724528289236,0.43394466,64348.0,64347.0,0.003]
[1724528289940,0.51161166,64348.0,64347.0,0.003]
[1724528290444,0.51165166,64348.0,64347.0,0.003]
[1724528293845,0.15085166,64348.0,64347.0,0.003]
[1724528296043,0.14985166,64348.0,64344.0,0.11651301]
[1724528296243,0.079707,64348.0,64347.0,0.004]
[1724528297444,0.079707,64348.0,64344.0,0.11651301]
[1724528297445,0.079707,64348.0,64344.0,0.12051301]
[1724528297642,0.11,64345.0,64344.0,0.12051301]
[1724528298250,0.11004,64345.0,64344.0,0.12051301]
[1724528298952,0.11004,64345.0,64344.0,0.16681936]
[1724528299254,0.11004,64345.0,64344.0,0.11651301]
[1724528300148,0.11104,64345.0,64344.0,0.12051301]
[1724528300452,0.11204,64345.0,64344.0,0.12051301]
[1724528302351,0.11204,64345.0,64344.0,0.18242455]
[1724528303246,0.11204,64345.0,64344.0,0.12051301]
[1724528306645,0.11204,64345.0,64344.0,0.31625411]
[1724528307255,0.11204,64345.0,64344.0,0.12051301]
[1724528307451,0.189711,64345.0,64344.0,0.12051301]
[1724528308650,0.189711,64345.0,64344.0,0.06615449]
[1724528308952,0.189711,64345.0,64344.0,0.00423301]
[1724528311262,0.550511,64345.0,64344.0,0.00423301]
[1724528314557,0.550511,64345.0,64344.0,0.05066502]
[1724528316169,0.189711,64345.0,64344.0,0.05066502]
[1724528316365,0.550511,64345.0,64344.0,0.05066502]
[1724528316572,0.550511,64345.0,64344.0,0.00423301]
[1724528316962,0.550511,64345.0,64344.0,0.05066473]
[1724528318960,0.550511,64345.0,64344.0,0.00423301]
[1724528320771,0.550511,64345.0,64338.0,0.04643172]
[1724528320772,0.44066365,64345.0,64338.0,0.04643172]
[1724528320967,0.3608,64339.0,64338.0,0.04643172]
[1724528321167,0.077682,64336.0,64335.0,0.10962148]
[1724528321373,0.187682,64336.0,64335.0,0.0477]
[1724528321868,0.187722,64336.0,64335.0,0.0477]
[1724528322964,0.188722,64336.0,64335.0,0.0477]
[1724528323569,0.189722,64336.0,64335.0,0.0477]
[1724528325676,0.21681573,64336.0,64335.0,0.0477]
[1724528326267,0.57761573,64336.0,64335.0,0.0477]
[1724528329074,0.21681573,64336.0,64335.0,0.0477]
[1724528329376,0.57761573,64336.0,64335.0,0.0477]
[1724528332374,0.57761573,64336.0,64335.0,0.09410471]
[1724528332577,0.57761573,64336.0,64335.0,0.0477]
[1724528333476,0.49993373,64336.0,64335.0,0.0477]
[1724528334573,0.49993373,64336.0,64335.0,0.10962148]
[1724528335968,0.49993373,64336.0,64335.0,0.10959416]
[1724528336175,0.49993373,64336.0,64335.0,0.10959307]
[1724528336374,0.49993373,64336.0,64335.0,0.0477]
[1724528338980,0.13913373,64336.0,64335.0,0.0477]
[1724528341285,0.13913373,64336.0,64335.0,0.125383]
[1724528341286,0.02913373,64336.0,64335.0,0.125383]
[1724528341580,0.02913373,64336.0,64335.0,0.14967186]
[1724528341581,0.13913373,64336.0,64335.0,0.14967186]
[1724528343591,0.13913373,64336.0,64335.0,0.125383]
[1724528345087,0.00023301,64342.0,64341.0,0.077676]
[1724528345684,0.00023301,64342.0,64341.0,0.17936515]
[1724528345985,0.00023301,64342.0,64341.0,0.1020033]
[1724528346385,0.00023301,64342.0,64341.0,0.1486033]
[1724528346583,0.00123301,64342.0,64341.0,0.1486033]
[1724528346785,0.00123301,64342.0,64341.0,0.22600515]
[1724528347096,0.00123301,64342.0,64341.0,0.1486033]
[1724528347490,0.00223301,64342.0,64341.0,0.1496033]
[1724528347793,0.00223301,64342.0,64341.0,0.34324515]
[1724528348193,0.00223301,64342.0,64341.0,0.2658433]
[1724528348895,0.00223301,64342.0,64341.0,0.26584244]
[1724528349594,0.49784872,64344.0,64343.0,0.077673]
[1724528349896,0.4708,64344.0,64343.0,0.10195944]
[1724528350394,0.11,64344.0,64343.0,0.54020129]
[1724528350694,0.11,64344.0,64343.0,0.46279944]
[1724528350892,0.11,64344.0,64343.0,0.65855859]
[1724528351198,0.11,64344.0,64343.0,0.46279944]
[1724528351496,0.111,64344.0,64343.0,0.46379944]
[1724528351792,0.111,64344.0,64343.0,0.66155837]
[1724528351793,0.112,64344.0,64343.0,0.66155837]
[1724528351996,0.112,64344.0,64343.0,0.54320129]
[1724528352197,0.112,64344.0,64343.0,0.46579944]
[1724528352792,0.112,64344.0,64343.0,0.10499944]
[1724528355203,0.111,64344.0,64343.0,0.10699944]
[1724528355393,0.111,64344.0,64343.0,0.1069987]
[1724528356999,0.111,64344.0,64343.0,0.1059987]
[1724528357390,0.111,64344.0,64343.0,0.25981253]
[1724528357596,0.111,64344.0,64343.0,0.28410334]
[1724528357901,0.188672,64344.0,64343.0,0.00404]
[1724528358098,0.188672,64344.0,64343.0,0.12028]
[1724528358099,0.111,64344.0,64343.0,0.12028]
[1724528358803,0.111,64344.0,64343.0,0.00404]
[1724528359000,0.111,64344.0,64343.0,0.12024]
[1724528359505,0.4708,64344.0,64343.0,0.12024]
[1724528360092,0.4708,64344.0,64343.0,0.00404]
[1724528360295,0.4708,64344.0,64343.0,0.12024]
[1724528361602,0.4708,64344.0,64343.0,0.00404]
[1724528361806,0.4708,64344.0,64343.0,0.12024]
[1724528363104,0.11,64344.0,64343.0,0.16664588]
[1724528363405,0.11,64344.0,64343.0,0.12024]
[1724528364697,0.11,64344.0,64343.0,0.18210369]
[1724528365204,0.11,64344.0,64343.0,0.14452617]
[1724528368799,0.11,64344.0,64343.0,0.14452568]
[1724528369314,0.11,64344.0,64343.0,0.12024]
[1724528369503,0.11,64344.0,64343.0,0.1445257]
[1724528372412,0.11,64344.0,64343.0,0.14452571]
[1724528374212,0.11,64344.0,64343.0,0.22192756]
[1724528374618,0.4708,64344.0,64343.0,0.22192756]
[1724528374806,0.4708,64344.0,64343.0,0.14452571]
[1724528375515,0.11,64344.0,64343.0,0.14452571]
[1724528375914,0.11,64344.0,64343.0,0.34028781]
[1724528376112,0.11,64344.0,64343.0,0.19764185]
[1724528376312,0.11,64344.0,64343.0,0.34028858]
[1724528380412,0.11,64344.0,64343.0,0.26288673]
[1724528383923,0.11,64344.0,64343.0,0.34036591]
[1724528384122,0.11,64344.0,64343.0,0.26288673]
[1724528384618,0.11,64344.0,64343.0,0.2628869]
[1724528384810,0.11,64344.0,64343.0,0.34036821]
[1724528386920,0.11,64344.0,64343.0,0.31608213]
[1724528387119,0.11,64344.0,64343.0,0.12024]
[1724528389622,0.11,64344.0,64343.0,0.19101731]
[1724528390127,0.11,64344.0,64343.0,0.2628868]
[1724528390324,0.11,64344.0,64343.0,0.34037452]
[1724528390521,0.11,64344.0,64343.0,0.3403765]
[1724528391127,0.11,64344.0,64343.0,0.31608981]
[1724528391630,0.11,64344.0,64343.0,0.31608926]
[1724528392523,0.11,64344.0,64343.0,0.19772772]
[1724528392726,0.11,64344.0,64343.0,0.12024]
[1724528392919,0.11,64344.0,64343.0,0.19772772]
[1724528393924,0.11,64344.0,64343.0,0.12024]
[1724528394732,0.11,64344.0,64343.0,0.1162]
[1724528399637,0.11,64344.0,64341.0,0.03806617]
[1724528399831,0.11,64344.0,64343.0,0.1162]
[1724528400335,0.11,64344.0,64343.0,0.23456316]
[1724528402028,0.10477974,64345.0,64343.0,0.23456316]
[1724528402226,0.10477974,64345.0,64344.0,0.11836316]
[1724528402735,0.10477974,64345.0,64344.0,0.11840316]
[1724528404744,0.10477974,64345.0,64344.0,4e-05]
[1724528405336,0.10477974,64345.0,64344.0,0.11840226]
[1724528405741,0.21477974,64345.0,64344.0,0.11840226]
[1724528406846,0.21477974,64345.0,64344.0,0.11840345]
[1724528407742,0.21477974,64345.0,64344.0,4e-05]
[1724528410555,0.49790874,64345.0,64342.0,0.06200773]
[1724528410861,0.49790874,64345.0,64341.0,0.06200773]
[1724528410862,0.077674,64342.0,64341.0,0.06200773]
[1724528411059,0.077676,64341.0,64340.0,0.06200773]
[1724528411245,0.4708,64341.0,64337.0,0.06200773]
[1724528411449,0.187679,64338.0,64337.0,0.06200773]
[1724528411650,0.07768,64337.0,64336.0,0.06200773]
[1724528411857,0.07768,64337.0,64335.0,0.10970773]
[1724528411858,0.077682,64336.0,64335.0,0.10970773]
[1724528412251,0.077682,64336.0,64335.0,0.0477]
[1724528412655,0.077684,64334.0,64333.0,0.06200773]
[1724528412855,0.077685,64333.0,64332.0,0.1162]
[1724528413051,0.438485,64333.0,64332.0,0.1162]
[1724528413252,0.438485,64333.0,64332.0,0.1781395]
[1724528413453,0.438485,64333.0,64332.0,0.1162]
[1724528413754,0.438525,64333.0,64332.0,0.17813821]
[1724528413947,0.438525,64333.0,64332.0,0.1162]
[1724528414158,0.438525,64333.0,64332.0,0.17813657]
[1724528414353,0.438525,64333.0,64332.0,0.06193657]
[1724528414554,0.438525,64333.0,64331.0,0.06193657]
[1724528414755,0.11,64332.0,64331.0,0.06193657]
[1724528414949,0.11,64332.0,64330.0,0.1162]
[1724528415157,0.11,64332.0,64331.0,0.06190777]
[1724528415357,0.11,64332.0,64330.0,0.06190777]
[1724528415654,0.11,64332.0,64327.0,0.0452]
[1724528415655,0.077688,64331.0,64329.0,0.06214078]
[1724528416257,0.111,64332.0,64329.0,0.00023301]
[1724528416258,0.077689,64330.0,64329.0,0.00023301]
[1724528416465,0.077729,64330.0,64329.0,0.00023301]
[1724528417253,0.077729,64330.0,64329.0,0.0466627]
[1724528417858,0.078729,64330.0,64329.0,0.00023301]
[1724528418465,0.079729,64330.0,64329.0,0.00023301]
[1724528418664,0.189729,64330.0,64329.0,0.00023301]
[1724528418865,0.189729,64330.0,64329.0,0.04663013]
[1724528419064,0.189729,64330.0,64329.0,0.00023301]
[1724528422460,0.189729,64330.0,64329.0,0.04661495]
[1724528428164,0.11204,64330.0,64329.0,0.04661495]
[1724528428371,0.11204,64330.0,64329.0,0.12430495]
[1724528429370,0.11204,64330.0,64329.0,0.07792301]
[1724528433769,0.07317284,64330.0,64329.0,0.13983078]
[1724528433970,0.07317284,64330.0,64329.0,0.1397852]
[1724528434169,0.07317284,64330.0,64329.0,0.07792301]
[1724528434571,0.07317284,64330.0,64329.0,0.13979781]
[1724528434873,0.07317284,64330.0,64329.0,0.07792301]
[1724528438474,0.07317284,64330.0,64329.0,0.15521648]
[1724528438667,0.07317284,64330.0,64329.0,0.07792301]
[1724528438873,0.07317284,64330.0,64329.0,0.15521648]
[1724528439273,0.07317284,64330.0,64329.0,0.19630927]
[1724528439474,0.07317284,64330.0,64329.0,0.27376236]
[1724528439676,0.07317284,64330.0,64329.0,0.19630927]
[1724528439974,0.07317284,64330.0,64329.0,0.27376316]
[1724528440178,0.07317284,64330.0,64329.0,0.19630927]
[1724528441577,0.07317284,64330.0,64329.0,0.19630752]
[1724528445083,0.07317284,64330.0,64329.0,0.24530752]
[1724528446586,0.07317284,64330.0,64329.0,0.24530582]
[1724528453293,0.07317284,64330.0,64329.0,0.33818804]
[1724528454496,0.07317284,64330.0,64329.0,0.24530582]
[1724528456286,0.07317284,64330.0,64329.0,0.33831287]
[1724528456794,0.07317284,64330.0,64329.0,0.24530649]
[1724528457494,0.07317284,64330.0,64329.0,0.33831548]
[1724528458195,0.07317284,64330.0,64329.0,0.24530649]
[1724528458789,0.07317284,64330.0,64329.0,0.19630649]
[1724528460695,0.07317284,64330.0,64329.0,0.19630707]
[1724528460892,0.07317284,64330.0,64329.0,0.28932394]
[1724528461092,0.07317284,64330.0,64329.0,0.19630707]
[1724528462501,0.07317284,64330.0,64329.0,0.07792301]
[1724528465398,0.07317284,64330.0,64329.0,0.1963055]
[1724528466699,0.07317284,64330.0,64329.0,0.3124655]
[1724528469801,0.07317284,64330.0,64329.0,0.31246709]
[1724528470307,0.07317284,64330.0,64329.0,0.3124671]
[1724528471208,0.15086184,64330.0,64329.0,0.1186171]
[1724528471405,0.19846184,64330.0,64329.0,0.32780326]
[1724528473409,0.19846184,64330.0,64329.0,0.2347771]
[1724528474599,0.19846184,64330.0,64329.0,0.32780673]
[1724528475301,0.15086184,64330.0,64329.0,0.32780673]
[1724528475697,0.15086184,64330.0,64329.0,0.40549673]
[1724528476302,0.15086184,64330.0,64329.0,0.31247057]
[1724528478300,0.15086184,64330.0,64329.0,0.40549536]
[1724528478806,0.11199637,64330.0,64329.0,0.40549536]
[1724528479000,0.11199637,64330.0,64329.0,0.31247057]
[1724528479595,0.11199637,64330.0,64329.0,0.31246167]
[1724528481903,0.11199637,64330.0,64329.0,0.67326167]
[1724528483010,0.00014892,64334.0,64329.0,0.67326167]
[1724528483011,0.077687,64332.0,64331.0,0.077687]
[1724528483205,0.187687,64332.0,64331.0,0.28907271]
[1724528483810,0.187687,64332.0,64331.0,0.28911271]
[1724528484213,0.187687,64332.0,64331.0,0.19610566]
[1724528484407,0.188687,64332.0,64331.0,0.19710566]
[1724528484709,0.188687,64332.0,64331.0,0.55790566]
[1724528485315,0.188687,64332.0,64331.0,0.19710566]
[1724528485815,0.189687,64332.0,64331.0,0.1572387]
[1724528486011,0.112,64332.0,64331.0,0.27562292]
[1724528486213,0.112,64332.0,64331.0,0.1572387]
[1724528487402,0.112,64332.0,64331.0,0.079727]
[1724528488012,0.112,64332.0,64331.0,0.1572387]
[1724528489316,0.002,64332.0,64331.0,0.1572387]
[1724528489511,0.112,64332.0,64331.0,0.27562402]
[1724528489817,0.112,64332.0,64331.0,0.27562655]
[1724528490016,0.112,64332.0,64331.0,0.19811232]
[1724528492812,0.189687,64332.0,64331.0,0.19811232]
[1724528496618,0.125087,64332.0,64331.0,0.19811232]
[1724528496816,0.189687,64332.0,64331.0,0.19811232]
[1724528497007,0.189687,64332.0,64331.0,0.19810921]
[1724528499414,0.189687,64332.0,64331.0,0.079727]
[1724528500320,0.236287,64332.0,64331.0,0.00204]
[1724528500716,0.236287,64332.0,64331.0,0.06404462]
[1724528501015,0.236287,64332.0,64331.0,0.00204]
[1724528505835,0.235287,64332.0,64331.0,0.00204]
[1724528506740,0.234287,64332.0,64331.0,0.00104]
[1724528506931,0.234287,64332.0,64331.0,0.00204]
[1724528507632,0.595087,64332.0,64331.0,0.00204]
[1724528508028,0.234287,64332.0,64331.0,0.00204]
[1724528508340,0.595087,64332.0,64331.0,0.00204]
[1724528509742,0.672774,64332.0,64331.0,0.00204]
[1724528510835,0.672774,64332.0,64331.0,0.00104]
[1724528511043,0.672774,64332.0,64331.0,0.00204]
[1724528511841,0.672774,64332.0,64331.0,0.00104]
[1724528513244,0.672774,64332.0,64331.0,0.04751999]
[1724528513448,0.672774,64332.0,64331.0,0.00104]
[1724528513946,0.672774,64332.0,64331.0,0.04753122]
[1724528515461,0.672774,64332.0,64331.0,0.00104]
[1724528517148,1.033574,64332.0,64331.0,0.00104]
[1724528521347,0.672774,64332.0,64331.0,0.00104]
[1724528521546,1.033574,64332.0,64331.0,0.00104]
[1724528521749,0.311974,64332.0,64331.0,0.00104]
[1724528522046,1.033574,64332.0,64331.0,0.00104]
[1724528523244,1.033574,64332.0,64329.0,0.00023301]
[1724528523245,0.155378,64330.0,64329.0,0.00023301]
[1724528523447,0.077693,64327.0,64323.0,0.09209122]
[1724528523645,0.077693,64327.0,64323.0,0.09207268]
[1724528523646,0.4708,64324.0,64323.0,0.09207268]
[1724528523839,0.47094271,64324.0,64323.0,0.09207268]
[1724528524043,0.47094271,64324.0,64323.0,0.0456]
[1724528524344,0.47098271,64324.0,64323.0,0.0456]
[1724528524650,0.54867871,64324.0,64323.0,0.001]
[1724528525149,0.635025,64324.0,64323.0,0.002]
[1724528526246,0.636025,64324.0,64323.0,0.001]
[1724528527846,0.55067871,64324.0,64323.0,0.001]
[1724528528046,0.44067871,64324.0,64323.0,0.001]
[1724528528352,0.55067871,64324.0,64323.0,0.001]
[1724528529651,0.57782261,64324.0,64323.0,0.05]
[1724528531050,0.57782261,64324.0,64323.0,0.09644739]
[1724528531451,0.57782261,64324.0,64323.0,0.05]
[1724528533442,0.57782261,64324.0,64323.0,0.09644885]
[1724528533644,0.57782261,64324.0,64323.0,0.05]
[1724528536656,0.57782261,64324.0,64323.0,0.09644885]
[1724528536852,0.21702261,64324.0,64323.0,0.09644885]
[1724528537159,0.57782261,64324.0,64323.0,0.09644885]
[1724528537465,0.57782261,64324.0,64323.0,0.05]
[1724528537956,0.21702261,64324.0,64323.0,0.05]
[1724528538348,0.57782261,64324.0,64323.0,0.05]
[1724528539154,0.57782261,64324.0,64323.0,0.09647276]
[1724528541061,0.57782261,64324.0,64323.0,0.05]
[1724528542954,0.21702261,64324.0,64323.0,0.05]
[1724528543157,0.57782261,64324.0,64323.0,0.05]
[1724528544264,0.21702261,64324.0,64323.0,0.09647276]
[1724528544564,0.57782261,64324.0,64323.0,0.09647276]
[1724528544863,0.21702261,64324.0,64323.0,0.09647276]
[1724528545253,0.57782261,64324.0,64323.0,0.09647276]
[1724528546065,0.21702261,64324.0,64323.0,0.09647276]
[1724528546257,0.57782261,64324.0,64323.0,0.09647276]
[1724528547060,0.21702261,64324.0,64323.0,0.09647276]
[1724528547260,0.57782261,64324.0,64323.0,0.05]
[1724528547662,0.21702261,64324.0,64323.0,0.05]
[1724528547964,0.57782261,64324.0,64323.0,0.05]
[1724528550160,0.21702261,64324.0,64323.0,0.05]
[1724528550361,0.57782261,64324.0,64323.0,0.05]
[1724528552555,0.57782261,64324.0,64323.0,0.1119706]
[1724528554263,0.21702261,64324.0,64323.0,0.1119706]
[1724528554460,0.57782261,64324.0,64323.0,0.1119706]
[1724528554663,0.21702261,64324.0,64323.0,0.1119706]
[1724528554858,0.57782261,64324.0,64323.0,0.1119706]
[1724528555266,0.57782261,64324.0,64323.0,0.05]
[1724528557364,0.21702261,64324.0,64323.0,0.05]
[1724528557667,0.57782261,64324.0,64323.0,0.05]
[1724528558663,0.21702261,64324.0,64323.0,0.05]
[1724528558971,0.57782261,64324.0,64323.0,0.05]
[1724528569171,0.21702261,64324.0,64323.0,0.05]
[1724528569372,0.57782261,64324.0,64323.0,0.05]
[1724528571871,0.39012661,64324.0,64323.0,0.05]
[1724528572076,0.50012661,64324.0,64323.0,0.05]
[1724528574773,0.57782261,64324.0,64323.0,0.05]
[1724528577680,0.57782261,64324.0,64323.0,0.11209965]
[1724528577879,0.57782261,64324.0,64323.0,0.05]
[1724528578182,0.57782261,64324.0,64323.0,0.1120992]
[1724528578384,0.57782261,64324.0,64323.0,0.05]
[1724528578682,0.57782261,64324.0,64323.0,0.1120986]
[1724528581982,0.57782261,64324.0,64323.0,0.05]
[1724528582284,0.65551861,64324.0,64323.0,0.001]
[1724528582483,0.65551861,64324.0,64323.0,0.04758234]
[1724528582484,0.66312922,64324.0,64323.0,0.04758234]
[1724528582876,0.66312922,64324.0,64323.0,0.001]
[1724528583486,0.077697,64323.0,64322.0,0.04658234]
[1724528583684,0.077699,64322.0,64321.0,0.04658234]
[1724528583881,0.187699,64322.0,64321.0,0.04658234]
[1724528584090,0.077702,64319.0,64318.0,0.0620986]
[1724528584388,0.187702,64319.0,64318.0,0.0620986]
[1724528584987,0.187742,64319.0,64318.0,0.0620986]
[1724528585191,0.077703,64318.0,64317.0,0.0623318]
[1724528585486,0.438503,64318.0,64317.0,0.0623318]
[1724528585887,0.438543,64318.0,64317.0,0.0623318]
[1724528586478,0.438543,64318.0,64317.0,0.0002332]
[1724528586684,0.439543,64318.0,64317.0,0.0002332]
[1724528586874,0.439543,64318.0,64317.0,0.0012332]
[1724528588491,0.447543,64318.0,64317.0,0.0002332]
[1724528588677,0.447543,64318.0,64317.0,0.04676706]
[1724528589077,0.447543,64318.0,64317.0,0.0002332]
[1724528589694,0.447543,64318.0,64317.0,0.04676706]
[1724528590286,0.447543,64318.0,64317.0,0.0002332]
[1724528597887,0.086743,64318.0,64317.0,0.0002332]
[1724528598595,0.447543,64318.0,64317.0,0.0002332]
[1724528599091,0.557543,64318.0,64317.0,0.0467332]
[1724528599290,0.557543,64318.0,64317.0,0.09326706]
[1724528600992,0.196743,64318.0,64317.0,0.09326706]
[1724528601192,0.557543,64318.0,64317.0,0.09326706]
[1724528605608,0.557543,64318.0,64317.0,0.0467332]
[1724528606397,0.557543,64318.0,64317.0,0.09326707]
[1724528607595,0.196743,64318.0,64317.0,0.0467332]
[1724528607894,0.557543,64318.0,64317.0,0.0467332]
[1724528608295,0.196743,64318.0,64317.0,0.0467332]
[1724528608492,0.557543,64318.0,64317.0,0.0467332]
[1724528609496,0.196743,64318.0,64317.0,0.0467332]
[1724528609694,0.557543,64318.0,64317.0,0.0467332]
[1724528611299,0.557543,64318.0,64317.0,0.1088318]
[1724528611601,0.557543,64318.0,64317.0,0.0467332]
[1724528612299,0.557543,64318.0,64317.0,0.1088318]
[1724528612497,0.557543,64318.0,64317.0,0.0467332]
[1724528614208,0.557543,64318.0,64317.0,0.1088318]
[1724528614405,0.557543,64318.0,64317.0,0.0002332]
[1724528616297,0.557543,64318.0,64317.0,0.0623318]
[1724528617112,0.557543,64318.0,64317.0,0.0002332]
[1724528617300,0.557543,64318.0,64317.0,0.06234571]
[1724528617701,0.557543,64318.0,64317.0,0.0002332]
[1724528619600,0.196743,64318.0,64317.0,0.0002332]
[1724528619800,0.557543,64318.0,64317.0,0.0002332]
[1724528619998,0.557543,64318.0,64317.0,0.06234549]
[1724528620209,0.557543,64318.0,64317.0,0.0002332]
[1724528624803,0.196743,64318.0,64317.0,0.0002332]
[1724528625001,0.557543,64318.0,64317.0,0.06234942]
[1724528625208,0.557543,64318.0,64317.0,0.0002332]
[1724528627115,0.557543,64318.0,64317.0,0.06234816]
[1724528627605,0.557543,64318.0,64317.0,0.0002332]
[1724528630007,0.552543,64318.0,64317.0,0.0002332]
[1724528630207,0.556543,64318.0,64317.0,0.0002332]
[1724528630809,0.552543,64318.0,64317.0,0.0002332]
[1724528631011,0.554543,64318.0,64317.0,0.0002332]
[1724528634415,0.554543,64318.0,64317.0,0.06234583]
[1724528634612,0.554543,64318.0,64317.0,0.0002332]
[1724528637811,0.29010177,64318.0,64317.0,1.02187179]
[1724528638008,0.29010177,64318.0,64317.0,1.0627944]
[1724528639713,0.29410177,64318.0,64317.0,1.1101944]
[1724528640117,0.29610177,64318.0,64317.0,1.1101944]
[1724528640318,0.29610177,64318.0,64317.0,1.11018879]
[1724528640812,0.006,64318.0,64317.0,1.11018879]
[1724528641713,0.02728661,64324.0,64317.0,1.11018879]
[1724528641714,0.02728661,64324.0,64323.0,0.077697]
[1724528641922,0.13728661,64324.0,64323.0,0.077697]
[1724528642113,0.13728661,64324.0,64323.0,0.544097]
[1724528642515,0.13728661,64324.0,64323.0,0.077737]
[1724528643126,0.15628661,64324.0,64323.0,0.078737]
[1724528652125,0.15628661,64324.0,64323.0,0.14068023]
[1724528658719,0.04628661,64324.0,64323.0,0.25068023]
[1724528660318,0.04628661,64324.0,64323.0,0.25064765]
[1724528661221,0.04628661,64324.0,64323.0,0.188737]
[1724528661633,0.01914271,64324.0,64323.0,1.055137]
[1724528661826,0.077688,64332.0,64329.0,0.07769]